Workbook

Sheet Chezy-trapéz
A1: Minta keresztszelvény tervezés és ellenőrzés (Chezy formula alkalmazásával)
A3: A kék és sárga mezők szabadon felvehetők.
A4: b értékét általában 10 cm-re kerek értékre vegyék fel, h értéke automatikusan számítódik 1 cm pontosan
A6: Keresztszelvény alakja: | D6: trapéz szelvény (b, h, ρ, k, S)
A8: Tervezés mértékadó vízhozamra:
A9: Qmért.= | B9: 36.98 | C9: m3/s | D9: vkh= | E9: 2.5 | F9: m/s
A10: k= | B10: 55 | C10: m⅓/s
A11: ρ= | B11: 1.5
A12: S= | B12: 1.2 | C12: ‰
B13: b (m) | C13: h (m) | D13: A (m2) | E13: P (m) | F13: R (m) | G13: v (m/s) | H13: vkh ell. | I13: Qszám. (m3/s) | J13: Qmért. ell.
A14: 1. változat | B14: 1.6 | C14: =h_Trapéz_szelvény($B$9,$B$10,$B$11,$B$12,B14) -> 2.75999999 | D14: =A_Trapéz_szelvény(B14,C14,$B$11) -> 15.8423996 | E14: =P_Trapéz_szelvény(B14,C14,$B$11) -> 11.55132103 | F14: =D14/E14 -> 1.371479466 | G14: =v_Trapéz_szelvény(B14,C14,$B$11,$B$10,$B$12) -> 2.351867437 | H14: =IF($E$9>G14,"OK","NEM") -> OK | I14: =ROUND(G14*D14,2) -> 37.26 | J14: =IF(I14>=$B$9,"OK","NEM") -> OK
A15: 2. változat | B15: 2.6 | C15: =h_Trapéz_szelvény($B$9,$B$10,$B$11,$B$12,B15) -> 2.5 | D15: =A_Trapéz_szelvény(B15,C15,$B$11) -> 15.875 | E15: =P_Trapéz_szelvény(B15,C15,$B$11) -> 11.61387825 | F15: =D15/E15 -> 1.366899123 | G15: 2.346628189 | H15: =IF($E$9>G15,"OK","NEM") -> OK | I15: =ROUND(G15*D15,2) -> 37.25 | J15: =IF(I15>=$B$9,"OK","NEM") -> OK
A16: 3. változat | B16: 2.7 | C16: 2.470000029 | D16: 15.82035065 | E16: 11.60571194 | F16: =D16/E16 -> 1.363152104 | G16: =v_Trapéz_szelvény(B16,C16,$B$11,$B$10,$B$12) -> 2.342337847 | H16: =IF($E$9>G16,"OK","NEM") -> OK | I16: =ROUND(G16*D16,2) -> 37.06 | J16: OK
A17: 4. változat | B17: 2.8 | C17: 2.450000048 | D17: 15.86375046 | E17: 11.63360119 | F17: =D17/E17 -> 1.363614774 | G17: =v_Trapéz_szelvény(B17,C17,$B$11,$B$10,$B$12) -> 2.342867851 | H17: =IF($E$9>G17,"OK","NEM") -> OK | I17: =ROUND(G17*D17,2) -> 37.17 | J17: OK
B18: b/h értéke lehetőség szerint körülbelül 1 legyen (hidraulikailag legyen kedvező a meder alak)
A20: Ellenőrzés kisvízhozamra:
A21: KQ= | B21: 0.14 | C21: m3/s | D21: vmin= | E21: 0.5 | F21: m/s
B22: b (m) | C22: hKQ (m) | D22: A (m2) | E22: P (m) | F22: R (m) | G22: v (m/s) | H22: vmin ell. | I22: Qszám. (m3/s) | J22: KQ ell.
A23: 1. változat | B23: =B14 -> 1.6 | C23: =h_Trapéz_szelvény($B$21,$B$10,$B$11,$B$12,B23) -> 0.1599999964 | D23: =A_Trapéz_szelvény(B23,C23,$B$11) -> 0.2944000065 | E23: =P_Trapéz_szelvény(B23,C23,$B$11) -> 2.176888227 | F23: =D23/E23 -> 0.1352389171 | G23: =v_Trapéz_szelvény(B23,C23,$B$11,$B$10,$B$12) -> 0.5019815564 | H23: =IF($E$21<=G23,"OK","NEM") -> OK | I23: =ROUND(G23*D23,2) -> 0.15 | J23: =IF(I23>=$B$21,"OK","NEM") -> OK
A24: 2. változat | B24: =B15 -> 2.6 | C24: =h_Trapéz_szelvény($B$21,$B$10,$B$11,$B$12,B24) -> 0.1199999973 | D24: =A_Trapéz_szelvény(B24,C24,$B$11) -> 0.3335999846 | E24: =P_Trapéz_szelvény(B24,C24,$B$11) -> 3.032666206 | F24: =D24/E24 -> 0.1100022099 | G24: =v_Trapéz_szelvény(B24,C24,$B$11,$B$10,$B$12) -> 0.4374088943 | H24: =IF($E$21<=G24,"OK","NEM") -> NEM | I24: =ROUND(G24*D24,2) -> 0.15 | J24: =IF(I24>=$B$21,"OK","NEM") -> OK
A25: 3. változat | B25: =B16 -> 2.7 | C25: =h_Trapéz_szelvény($B$21,$B$10,$B$11,$B$12,B25) -> 0.1199999973 | D25: =A_Trapéz_szelvény(B25,C25,$B$11) -> 0.3455999792 | E25: 3.132666111 | F25: =D25/E25 -> 0.1103213579 | G25: 0.4382545054 | H25: NEM | I25: 0.15 | J25: OK
A26: 4. változat | B26: =B17 -> 2.8 | C26: =h_Trapéz_szelvény($B$21,$B$10,$B$11,$B$12,B26) -> 0.1199999973 | D26: 0.3576000035 | E26: 3.232666254 | F26: =D26/E26 -> 0.1106207617 | G26: 0.4390470684 | H26: NEM | I26: 0.16 | J26: OK
